fUSD/lending_fUSD_20240708
["ID","MTS","AMOUNT","RATE_DAILY","PERIOD"]
[331488205,1720438416958,-218.31296591,0.00050904,60]
[331488206,1720438417009,-866.74202253,0.00050943,60]
[331488207,1720438417060,-500.0,0.00050958,120]
[331488208,1720438417107,-858.68,0.00050958,120]
[331488209,1720438417160,-500.0,0.00050958,120]
[331488210,1720438417209,-1349.79,0.00050958,120]
[331488211,1720438417257,-502.55,0.00050958,120]
[331488212,1720438417303,-500.0,0.00050958,120]
[331488213,1720438417352,-500.0,0.00050958,120]
[331488214,1720438417398,-3020.56,0.00050958,120]
[331488215,1720438417443,-500.0,0.00050958,120]
[331488216,1720438417491,-500.0,0.00050958,120]
[331488217,1720438417538,-461.24,0.00050958,120]
[331488218,1720438417587,-1293.82,0.00050958,120]
[331488219,1720438417634,-1674.53,0.00050958,120]
[331488220,1720438417683,-1078.52,0.00050958,120]
[331488221,1720438417733,-500.0,0.00050958,120]
[331488222,1720438417783,-834.62,0.00050958,120]
[331488223,1720438417835,-500.0,0.00050958,120]
[331488224,1720438417887,-625.62,0.00050958,120]
[331488225,1720438417940,-500.0,0.00050958,120]
[331488226,1720438418151,-1390.62,0.00050958,120]
[331488227,1720438418201,-1406.2,0.00050958,120]
[331488228,1720438418251,-564.94759127,0.00050958,120]
[331488229,1720438418298,-500.0,0.00050958,120]
[331488230,1720438418351,-500.0,0.00050958,120]
[331488231,1720438418402,-500.0,0.00050958,120]
[331488232,1720438418450,-500.0,0.00050958,120]
[331488233,1720438418502,-500.0,0.00050958,120]
[331488234,1720438418552,-500.0,0.00050958,120]
[331488235,1720438418603,-500.0,0.00050958,120]
[331488236,1720438418651,-500.0,0.00050958,120]
[331488237,1720438418701,-464.92812836,0.00050958,120]
[331488238,1720438418754,-500.0,0.00050958,120]
[331488239,1720438418805,-669.87,0.00050958,120]
[331488240,1720438418858,-500.0,0.00050958,120]
[331488241,1720438418911,-500.0,0.00050958,120]
[331488242,1720438418972,-500.0,0.00050958,120]
[331488243,1720438419030,-617.8,0.00050958,120]
[331488244,1720438419091,-181.87501746,0.00050958,120]
[331488245,1720438419168,-728.82,0.00050958,120]
[331488246,1720438419240,-2399.28,0.00050958,120]
[331488247,1720438419311,-1434.06,0.00050958,120]
[331488248,1720438419378,-500.0,0.00050958,120]
[331488249,1720438419439,-510.34,0.00050958,120]
[331488250,1720438419502,-500.0,0.00050958,120]
[331488251,1720438419565,-500.0,0.00050958,120]
[331488252,1720438419624,-2007.19,0.00050958,120]
[331488253,1720438419685,-1253.66,0.00050958,120]
[331488254,1720438419744,-411.39600815,0.00050958,120]
[331488255,1720438419806,-1628.65,0.00050958,120]
[331488256,1720438419868,-1435.39,0.00050958,120]
[331488257,1720438419930,-2683.83,0.00050958,120]
[331488258,1720438419988,-500.0,0.00050958,120]
[331488259,1720438420047,-1226.3,0.00050958,120]
[331488260,1720438420106,-856.13,0.00050958,120]
[331488261,1720438420163,-1397.31,0.00050958,120]
[331488262,1720438420228,-500.0,0.00050958,120]
[331488263,1720438420285,-500.0,0.00050958,120]
[331488264,1720438420347,-602.51,0.00050958,120]
[331488265,1720438420411,-667.55,0.00050958,120]
[331488266,1720438420479,-500.0,0.00050958,120]
[331488267,1720438420541,-1620.69,0.00050958,120]
[331488268,1720438420602,-812.96,0.00050958,120]
[331488269,1720438420660,-2144.73,0.00050958,120]
[331488270,1720438420721,-500.0,0.00050958,120]
[331488271,1720438420783,-503.01862142,0.00050958,120]
[331488272,1720438420840,-3560.63,0.00050958,120]
[331488273,1720438420899,-1545.37,0.00050958,120]
[331488274,1720438420958,-500.0,0.00050958,120]
[331488275,1720438421018,-500.0,0.00050958,120]
[331488276,1720438421078,-505.85,0.00050958,120]
[331488277,1720438421135,-500.0,0.00050958,120]
[331488278,1720438421192,-801.42,0.00050958,120]
[331488279,1720438421251,-500.0,0.00050958,120]
[331488280,1720438421309,-3858.43,0.00050958,120]
[331488281,1720438421367,-500.0,0.00050958,120]
[331488282,1720438421430,-500.0,0.00050958,120]
[331488283,1720438421489,-500.0,0.00050958,120]
[331488284,1720438421550,-500.0,0.00050958,120]
[331488285,1720438421611,-4446.26,0.00050958,120]
[331488286,1720438421674,-500.0,0.00050958,120]
[331488287,1720438421739,-737.86,0.00050958,120]
[331488288,1720438421799,-564.21,0.00050958,120]
[331488289,1720438421858,-500.0,0.00050958,120]
[331488290,1720438421919,-500.0,0.00050958,120]
[331488291,1720438421989,-988.15,0.00050958,120]
[331488292,1720438422052,-6909.46,0.00050958,120]
[331488293,1720438422113,-6124.77,0.00050958,120]
[331488294,1720438422171,-7434.29,0.00050958,120]
[331488295,1720438422232,-1564.94,0.00050958,120]
[331488296,1720438422290,-3097.92,0.00050958,120]
[331488297,1720438422346,-224.40692403,0.00050958,120]
[331488298,1720438422402,-500.0,0.00050958,120]
[331488299,1720438422461,-500.0,0.00050958,120]
[331488300,1720438422518,-2569.11,0.00050958,120]
[331488301,1720438422576,-500.0,0.00050958,120]
[331488302,1720438422632,-4977.25,0.00050958,120]
[331488303,1720438422688,-817.49,0.00050958,120]
[331488304,1720438422743,-931.33,0.00050958,120]
[331488305,1720438422803,-500.0,0.00050958,120]
[331488306,1720438422858,-6557.78,0.00050958,120]
[331488307,1720438422915,-8047.98,0.00050958,120]
[331488308,1720438423004,-4890.76,0.00050958,120]
[331488309,1720438423073,-926.07,0.00050958,120]
[331488310,1720438423137,-500.0,0.00050958,120]
[331488311,1720438423203,-500.0,0.00050958,120]
[331488312,1720438423265,-634.86,0.00050958,120]
[331488313,1720438423337,-5071.97,0.00050958,120]
[331488314,1720438423403,-5197.47,0.00050958,120]
[331488315,1720438423459,-12824.58,0.00050958,120]
[331488316,1720438423541,-500.0,0.00050958,120]
[331488317,1720438423614,-737.63,0.00050958,120]
[331488318,1720438423706,-5000.69,0.00050958,120]
[331488319,1720438423773,-500.0,0.00050958,120]
[331488320,1720438423831,-500.0,0.00050958,120]
[331488321,1720438423890,-979.51,0.00050958,120]
[331488322,1720438423949,-1089.79,0.00050958,120]
[331488323,1720438424013,-500.0,0.00050958,120]
[331488324,1720438424072,-1000.0,0.00050958,120]
[331488325,1720438424131,-602.11,0.00050958,120]
[331488326,1720438424193,-3962.26,0.00050958,120]
[331488327,1720438424250,-816.01,0.00050958,120]
[331488328,1720438424311,-5967.11,0.00050958,120]
[331488329,1720438424369,-500.0,0.00050958,120]
[331488330,1720438424592,-952.17,0.00050958,120]
[331488331,1720438424652,-500.0,0.00050958,120]
[331488332,1720438424710,-3856.8,0.00050958,120]
[331488333,1720438424768,-1444.4,0.00050958,120]
[331488334,1720438424830,-4328.98,0.00050958,120]
[331488335,1720438424889,-602.68,0.00050958,120]
[331488336,1720438424947,-500.0,0.00050958,120]
[331488337,1720438425004,-500.0,0.00050958,120]
[331488338,1720438425061,-1667.53,0.00050958,120]
[331488339,1720438425115,-500.0,0.00050958,120]
[331488340,1720438425172,-4918.52,0.00050958,120]
[331488341,1720438425239,-1665.81,0.00050958,120]
[331488342,1720438425298,-500.0,0.00050958,120]
[331488343,1720438425354,-1892.85,0.00050958,120]
[331488344,1720438425408,-500.0,0.00050958,120]
[331488345,1720438425463,-1343.01,0.00050958,120]
[331488346,1720438425519,-2033.08,0.00050958,120]
[331488347,1720438425573,-3737.99,0.00050958,120]
[331488348,1720438425626,-481.02,0.00050958,120]
[331488349,1720438425682,-500.0,0.00050958,120]
[331488350,1720438425737,-681.78,0.00050958,120]
[331488351,1720438425792,-2432.96,0.00050958,120]
[331488352,1720438425848,-8334.2,0.00050958,120]
[331488353,1720438425901,-500.0,0.00050958,120]
[331488354,1720438425957,-2303.71,0.00050958,120]
[331488355,1720438426012,-500.0,0.00050958,120]
[331488356,1720438426063,-446.73580098,0.00050958,120]
[331488357,1720438426116,-500.0,0.00050958,120]
[331488358,1720438426169,-7113.69,0.00050958,120]
[331488359,1720438426225,-500.0,0.00050958,120]
[331488360,1720438426281,-417.64190447,0.00050958,120]
[331488361,1720438426335,-2372.86,0.00050958,120]
[331488362,1720438426394,-491.37073694,0.00050958,120]
[331488363,1720438426453,-6365.6,0.00050958,120]
[331488364,1720438426507,-3895.56,0.00050958,120]
[331488365,1720438426562,-500.0,0.00050958,120]
[331488366,1720438426616,-500.0,0.00050958,120]
[331488367,1720438426670,-4737.12,0.00050958,120]
[331488368,1720438426731,-4028.67,0.00050958,120]
[331488369,1720438426785,-2932.06,0.00050958,120]
[331488370,1720438426841,-9769.22,0.00050958,120]
[331488371,1720438426898,-3721.64,0.00050958,120]
[331488372,1720438426959,-579.46,0.00050958,120]
[331488373,1720438427017,-1491.25,0.00050958,120]
[331488374,1720438427076,-9789.62,0.00050958,120]
[331488375,1720438427135,-1519.45,0.00050958,120]
[331488376,1720438427191,-552.8,0.00050958,120]
[331488377,1720438427249,-500.0,0.00050958,120]
[331488378,1720438427309,-18403.09,0.00050958,120]
[331488379,1720438427367,-5134.91,0.00050958,120]
[331488380,1720438427427,-2497.28,0.00050958,120]
[331488381,1720438427491,-506.61,0.00050958,120]
[331488382,1720438427549,-1198.7,0.00050958,120]
[331488383,1720438427613,-1667.87,0.00050958,120]
[331488384,1720438427673,-14120.27,0.00050958,120]
[331488385,1720438427736,-5150.8,0.00050958,120]
[331488386,1720438427794,-8496.48,0.00050958,120]
[331488387,1720438427851,-666.9,0.00050958,120]
[331488388,1720438427909,-77163.49,0.00050958,120]
[331488389,1720438427965,-500.0,0.00050958,120]
[331488390,1720438428018,-500.0,0.00050958,120]
[331488391,1720438428077,-1701.37,0.00050958,120]
[331488392,1720438428130,-500.0,0.00050958,120]
[331488393,1720438428188,-1695.49,0.00050958,120]
[331488394,1720438428245,-3671.69,0.00050958,120]
[331488395,1720438428300,-43789.77,0.00050958,120]
[331488396,1720438428357,-744.56,0.00050958,120]
[331488397,1720438428411,-500.0,0.00050958,120]
[331488398,1720438428468,-5882.08,0.00050958,120]
[331488399,1720438428526,-2648.44,0.00050958,120]
[331488400,1720438428580,-4253.18,0.00050958,120]
[331488401,1720438428638,-500.0,0.00050958,120]
[331488402,1720438428709,-2191.17,0.00050958,120]
[331488403,1720438428780,-500.0,0.00050958,120]
[331488404,1720438428849,-500.0,0.00050958,120]
[331488405,1720438428915,-4023.3,0.00050958,120]
[331488406,1720438429025,-1885.58,0.00050958,120]
[331488407,1720438429083,-500.0,0.00050958,120]
[331488408,1720438429142,-161.7778772,0.00051006,60]
[331488409,1720438429203,-1358.50662563,0.00051036,60]
[331488410,1720438429259,-1358.50662563,0.00051091,60]
[331488411,1720438429317,-1268.81765462,0.00051179,60]
[331488412,1720438429374,-866.74202253,0.00051227,60]
[331488413,1720438429437,-339.98642982,0.00051232,120]
[331488414,1720438429499,-858.68,0.00051232,120]
[331488415,1720438429558,-500.0,0.00051232,120]
[331488416,1720438429616,-1349.79,0.00051232,120]
[331488417,1720438429676,-502.55,0.00051232,120]
[331488418,1720438429735,-500.0,0.00051232,120]
[331488419,1720438429794,-500.0,0.00051232,120]
[331488420,1720438429855,-3020.56,0.00051232,120]
[331488421,1720438429910,-500.0,0.00051232,120]
[331488422,1720438429968,-500.0,0.00051232,120]
[331488423,1720438430028,-1293.82,0.00051232,120]
[331488424,1720438430085,-1674.53,0.00051232,120]
[331488425,1720438430144,-1078.52,0.00051232,120]
[331488426,1720438430201,-500.0,0.00051232,120]
[331488427,1720438430257,-834.62,0.00051232,120]
[331488428,1720438430314,-500.0,0.00051232,120]
[331488429,1720438430369,-625.62,0.00051232,120]
[331488430,1720438430425,-500.0,0.00051232,120]
[331488431,1720438430486,-1390.62,0.00051232,120]
[331488432,1720438430543,-1406.2,0.00051232,120]
[331488433,1720438430601,-500.0,0.00051232,120]
[331488434,1720438430822,-500.0,0.00051232,120]
[331488435,1720438430880,-528.79695144,0.00051232,120]
[331488436,1720438430941,-500.0,0.00051232,120]
[331488437,1720438431000,-500.0,0.00051232,120]
[331488438,1720438431058,-500.0,0.00051232,120]
[331488439,1720438431118,-500.0,0.00051232,120]
[331488440,1720438431175,-152.94825766,0.00051232,120]
[331488441,1720438431234,-500.0,0.00051232,120]
[331488442,1720438431293,-669.87,0.00051232,120]
[331488443,1720438431350,-511.95291124,0.00051232,120]
[331488444,1720438431412,-500.0,0.00051232,120]
[331488445,1720438431473,-500.0,0.00051232,120]
[331488446,1720438431546,-617.8,0.00051232,120]
[331488447,1720438431606,-728.82,0.00051232,120]
[331488448,1720438431669,-2399.28,0.00051232,120]
[331488449,1720438431732,-1434.06,0.00051232,120]
[331488450,1720438431790,-500.0,0.00051232,120]
[331488451,1720438431849,-510.34,0.00051232,120]
[331488452,1720438431909,-500.0,0.00051232,120]
[331488453,1720438431969,-2007.19,0.00051232,120]
[331488454,1720438432027,-500.0,0.00051232,120]
[331488455,1720438432086,-1253.66,0.00051232,120]
[331488456,1720438432143,-1628.65,0.00051232,120]
[331488457,1720438432201,-1435.39,0.00051232,120]
[331488458,1720438432258,-2683.83,0.00051232,120]
[331488459,1720438432316,-500.0,0.00051232,120]
[331488460,1720438432374,-1226.3,0.00051232,120]
[331488461,1720438432432,-856.13,0.00051232,120]
[331488462,1720438432492,-1397.31,0.00051232,120]
[331488463,1720438432549,-500.0,0.00051232,120]
[331488464,1720438432607,-602.51,0.00051232,120]
[331488465,1720438432664,-632.73784607,0.00051232,120]
[331488466,1720438432723,-667.55,0.00051232,120]
[331488467,1720438432784,-500.0,0.00051232,120]
[331488468,1720438432842,-1620.69,0.00051232,120]
[331488469,1720438432898,-812.96,0.00051232,120]
[331488470,1720438432958,-2144.73,0.00051232,120]
[331488471,1720438433014,-500.0,0.00051232,120]
[331488472,1720438433072,-3560.63,0.00051232,120]
[331488473,1720438433126,-1545.37,0.00051232,120]
[331488474,1720438433181,-500.0,0.00051232,120]
[331488475,1720438433237,-500.0,0.00051232,120]
[331488476,1720438433292,-505.85,0.00051232,120]
[331488477,1720438433351,-500.0,0.00051232,120]
[331488478,1720438433408,-801.42,0.00051232,120]
[331488479,1720438433462,-500.0,0.00051232,120]
[331488480,1720438433518,-3858.43,0.00051232,120]
[331488481,1720438433575,-536.66871726,0.00051232,120]
[331488482,1720438433633,-500.0,0.00051232,120]
[331488483,1720438433693,-287.54229911,0.00051232,120]
[331488484,1720438433759,-500.0,0.00051232,120]
[331488485,1720438433822,-4446.26,0.00051232,120]
[331488486,1720438433888,-500.0,0.00051232,120]
[331488487,1720438433954,-737.86,0.00051232,120]
[331488488,1720438434020,-564.21,0.00051232,120]
[331488489,1720438434082,-500.0,0.00051232,120]
[331488490,1720438434144,-500.0,0.00051232,120]
[331488491,1720438434203,-988.15,0.00051232,120]
[331488492,1720438434261,-6909.46,0.00051232,120]
[331488493,1720438434322,-6124.77,0.00051232,120]
[331488494,1720438434379,-7434.29,0.00051232,120]
[331488495,1720438434442,-1564.94,0.00051232,120]
[331488496,1720438434501,-3097.92,0.00051232,120]
[331488497,1720438434558,-500.0,0.00051232,120]
[331488498,1720438434617,-500.0,0.00051232,120]
[331488499,1720438434677,-2569.11,0.00051232,120]
[331488500,1720438434736,-500.0,0.00051232,120]
[331488501,1720438434795,-4977.25,0.00051232,120]
[331488502,1720438434854,-817.49,0.00051232,120]
[331488503,1720438434912,-931.33,0.00051232,120]
[331488504,1720438434973,-500.0,0.00051232,120]
[331488505,1720438435030,-6557.78,0.00051232,120]
[331488506,1720438435086,-8047.98,0.00051232,120]
[331488507,1720438435142,-4890.76,0.00051232,120]
[331488508,1720438435196,-926.07,0.00051232,120]
[331488509,1720438435250,-335.26981332,0.00051232,120]
[331488510,1720438435306,-504.35177368,0.00051232,120]
[331488511,1720438435361,-634.86,0.00051232,120]
[331488512,1720438435418,-5071.97,0.00051232,120]
[331488513,1720438435476,-5197.47,0.00051232,120]
[331488514,1720438435533,-12824.58,0.00051232,120]
[331488515,1720438435592,-500.0,0.00051232,120]
[331488516,1720438435650,-737.63,0.00051232,120]
[331488517,1720438435712,-5000.69,0.00051232,120]
[331488518,1720438435771,-500.0,0.00051232,120]
[331488519,1720438435829,-520.7,0.00051232,120]
[331488520,1720438435888,-979.51,0.00051232,120]
[331488521,1720438435948,-1089.79,0.00051232,120]
[331488522,1720438436017,-500.0,0.00051232,120]
[331488523,1720438436078,-1000.0,0.00051232,120]
[331488524,1720438436136,-602.11,0.00051232,120]
[331488525,1720438436191,-3962.26,0.00051232,120]
[331488526,1720438436248,-816.01,0.00051232,120]
[331488527,1720438436304,-5967.11,0.00051232,120]
[331488528,1720438436359,-500.0,0.00051232,120]
[331488529,1720438436414,-952.17,0.00051232,120]
[331488530,1720438436466,-500.0,0.00051232,120]
[331488531,1720438436522,-3856.8,0.00051232,120]
[331488532,1720438436583,-1444.4,0.00051232,120]
[331488533,1720438436641,-4328.98,0.00051232,120]
[331488534,1720438436696,-602.68,0.00051232,120]
[331488535,1720438436751,-500.0,0.00051232,120]
[331488536,1720438436805,-500.0,0.00051232,120]
[331488537,1720438436859,-1667.53,0.00051232,120]
[331488538,1720438437099,-500.0,0.00051232,120]
[331488539,1720438437153,-4918.52,0.00051232,120]
[331488540,1720438437206,-1665.81,0.00051232,120]
[331488541,1720438437255,-500.0,0.00051232,120]
[331488542,1720438437306,-1892.85,0.00051232,120]
[331488543,1720438437358,-226.99070747,0.00051232,120]
[331488544,1720438437409,-1343.01,0.00051232,120]
[331488545,1720438437462,-2033.08,0.00051232,120]
[331488546,1720438437513,-3737.99,0.00051232,120]
[331488547,1720438437566,-509.39559845,0.00051232,120]
[331488548,1720438437620,-681.78,0.00051232,120]
[331488549,1720438437670,-8334.2,0.00051232,120]
[331488550,1720438437726,-2432.96,0.00051232,120]
[331488551,1720438437778,-500.0,0.00051232,120]
[331488552,1720438437829,-2303.71,0.00051232,120]
[331488553,1720438437883,-500.0,0.00051232,120]
[331488554,1720438437935,-500.0,0.00051232,120]
[331488555,1720438437991,-7113.69,0.00051232,120]
[331488556,1720438438044,-500.0,0.00051232,120]
[331488557,1720438438095,-2372.86,0.00051232,120]
[331488558,1720438438150,-6365.6,0.00051232,120]
[331488559,1720438438202,-3895.56,0.00051232,120]
[331488560,1720438438253,-500.0,0.00051232,120]
[331488561,1720438438305,-500.0,0.00051232,120]
[331488562,1720438438359,-4737.12,0.00051232,120]
[331488563,1720438438414,-4028.67,0.00051232,120]
[331488564,1720438438472,-2932.06,0.00051232,120]
[331488565,1720438438529,-3721.64,0.00051232,120]
[331488566,1720438438586,-9769.22,0.00051232,120]
[331488567,1720438438636,-579.46,0.00051232,120]
[331488568,1720438438687,-1491.25,0.00051232,120]
[331488569,1720438438742,-9789.62,0.00051232,120]
[331488570,1720438438794,-1519.45,0.00051232,120]
[331488571,1720438438848,-552.8,0.00051232,120]
[331488572,1720438438902,-500.0,0.00051232,120]
[331488573,1720438438961,-18403.09,0.00051232,120]
[331488574,1720438439023,-5134.91,0.00051232,120]
[331488575,1720438439082,-2497.28,0.00051232,120]
[331488576,1720438439142,-506.61,0.00051232,120]
[331488577,1720438439201,-1198.7,0.00051232,120]
[331488578,1720438439259,-1667.87,0.00051232,120]
[331488579,1720438439318,-14120.27,0.00051232,120]
[331488580,1720438439377,-5150.8,0.00051232,120]
[331488581,1720438439436,-8496.48,0.00051232,120]
[331488582,1720438439496,-666.9,0.00051232,120]
[331488583,1720438439555,-77163.49,0.00051232,120]
[331488584,1720438439613,-500.0,0.00051232,120]
[331488585,1720438439673,-500.0,0.00051232,120]
[331488586,1720438439731,-1701.37,0.00051232,120]
[331488587,1720438439786,-500.0,0.00051232,120]
[331488588,1720438439842,-1695.49,0.00051232,120]
[331488589,1720438439897,-3671.69,0.00051232,120]
[331488590,1720438439957,-43789.77,0.00051232,120]
[331488591,1720438440013,-744.56,0.00051232,120]
[331488592,1720438440073,-427.59706595,0.00051232,120]
[331488593,1720438440134,-5882.08,0.00051232,120]
[331488594,1720438440200,-4253.18,0.00051232,120]
[331488595,1720438440268,-2648.44,0.00051232,120]
[331488596,1720438440338,-500.0,0.00051232,120]
[331488597,1720438440402,-2191.17,0.00051232,120]
[331488598,1720438440462,-500.0,0.00051232,120]
[331488599,1720438440526,-500.0,0.00051232,120]
[331488600,1720438440586,-4023.3,0.00051232,120]
[331488601,1720438440647,-1885.58,0.00051232,120]
[331488602,1720438440708,-500.0,0.00051232,120]
[331488603,1720438440769,-218.31296591,0.00051332,60]
[331488604,1720438440829,-833.33,0.00051369,120]
[331488605,1720438440886,-166.70724827,0.0005139,60]
[331488606,1720438440945,-179.41419415,0.00051405,60]
[331488607,1720438441005,-153.23456324,0.00051444,60]
[331488608,1720438441060,-1941.21439951,0.00051458,60]
[331488609,1720438441116,-155.71206553,0.00051488,60]
[331488610,1720438441173,-858.68,0.00051506,120]
[331488611,1720438441229,-618.50284905,0.00051506,120]
[331488612,1720438441284,-1349.79,0.00051506,120]
[331488613,1720438441340,-502.55,0.00051506,120]
[331488614,1720438441399,-500.0,0.00051506,120]
[331488615,1720438441453,-500.0,0.00051506,120]
[331488616,1720438441509,-3020.56,0.00051506,120]
[331488617,1720438441567,-500.0,0.00051506,120]
[331488618,1720438441625,-500.0,0.00051506,120]
[331488619,1720438441683,-1293.82,0.00051506,120]
[331488620,1720438441743,-1674.53,0.00051506,120]
[331488621,1720438441800,-1078.52,0.00051506,120]
[331488622,1720438441859,-500.0,0.00051506,120]
[331488623,1720438441917,-834.62,0.00051506,120]
[331488624,1720438441975,-500.0,0.00051506,120]
[331488625,1720438442032,-625.62,0.00051506,120]
[331488626,1720438442092,-500.0,0.00051506,120]
[331488627,1720438442153,-1390.62,0.00051506,120]
[331488628,1720438442213,-1406.2,0.00051506,120]
[331488629,1720438442269,-270.18580851,0.00051506,120]
[331488630,1720438442330,-500.0,0.00051506,120]
[331488631,1720438442385,-500.0,0.00051506,120]
[331488632,1720438442447,-500.0,0.00051506,120]
[331488633,1720438442505,-507.66349128,0.00051506,120]
[331488634,1720438442559,-500.0,0.00051506,120]
[331488635,1720438442616,-669.87,0.00051506,120]
[331488636,1720438442674,-500.0,0.00051506,120]
[331488637,1720438442727,-500.0,0.00051506,120]
[331488638,1720438442782,-617.8,0.00051506,120]
[331488639,1720438442838,-728.82,0.00051506,120]
[331488640,1720438442894,-2399.28,0.00051506,120]
[331488641,1720438442953,-1434.06,0.00051506,120]
[331488642,1720438443175,-500.0,0.00051506,120]
[331488643,1720438443230,-510.34,0.00051506,120]
[331488644,1720438443286,-2007.19,0.00051506,120]
[331488645,1720438443343,-500.0,0.00051506,120]
[331488646,1720438443404,-1253.66,0.00051506,120]
[331488647,1720438443459,-1628.65,0.00051506,120]
[331488648,1720438443521,-1435.39,0.00051506,120]
[331488649,1720438443579,-2683.83,0.00051506,120]
[331488650,1720438443640,-500.0,0.00051506,120]
[331488651,1720438443701,-1226.3,0.00051506,120]
[331488652,1720438443759,-856.13,0.00051506,120]
[331488653,1720438443821,-1397.31,0.00051506,120]
[331488654,1720438443879,-396.98255961,0.00051506,120]
[331488655,1720438443946,-602.51,0.00051506,120]
[331488656,1720438444009,-667.55,0.00051506,120]
[331488657,1720438444068,-500.0,0.00051506,120]
[331488658,1720438444128,-1620.69,0.00051506,120]
[331488659,1720438444187,-812.96,0.00051506,120]
[331488660,1720438444247,-2144.73,0.00051506,120]
[331488661,1720438444304,-3560.63,0.00051506,120]
[331488662,1720438444362,-1545.37,0.00051506,120]
[331488663,1720438444419,-500.0,0.00051506,120]
[331488664,1720438444479,-500.0,0.00051506,120]
[331488665,1720438444540,-505.85,0.00051506,120]
[331488666,1720438444601,-500.0,0.00051506,120]
[331488667,1720438444664,-801.42,0.00051506,120]
[331488668,1720438444732,-500.0,0.00051506,120]
[331488669,1720438444794,-3858.43,0.00051506,120]
[331488670,1720438444855,-500.0,0.00051506,120]
[331488671,1720438444917,-500.0,0.00051506,120]
[331488672,1720438444990,-4446.26,0.00051506,120]
[331488673,1720438445048,-500.0,0.00051506,120]
[331488674,1720438445106,-737.86,0.00051506,120]
[331488675,1720438445164,-564.21,0.00051506,120]
[331488676,1720438445219,-181.53955967,0.00051506,120]
[331488677,1720438445276,-500.0,0.00051506,120]
[331488678,1720438445332,-988.15,0.00051506,120]
[331488679,1720438445388,-6909.46,0.00051506,120]
[331488680,1720438445444,-6124.77,0.00051506,120]
[331488681,1720438445499,-7434.29,0.00051506,120]
[331488682,1720438445553,-1564.94,0.00051506,120]
[331488683,1720438445607,-3097.92,0.00051506,120]
[331488684,1720438445661,-500.0,0.00051506,120]
[331488685,1720438445717,-2569.11,0.00051506,120]
[331488686,1720438445773,-4977.25,0.00051506,120]
[331488687,1720438445831,-500.0,0.00051506,120]
[331488688,1720438445887,-817.49,0.00051506,120]
[331488689,1720438445940,-931.33,0.00051506,120]
[331488690,1720438445996,-264.61465901,0.00051506,120]
[331488691,1720438446050,-6557.78,0.00051506,120]
[331488692,1720438446105,-8047.98,0.00051506,120]
[331488693,1720438446161,-4890.76,0.00051506,120]
[331488694,1720438446215,-926.07,0.00051506,120]
[331488695,1720438446268,-634.86,0.00051506,120]
[331488696,1720438446321,-5071.97,0.00051506,120]
[331488697,1720438446373,-5197.47,0.00051506,120]
[331488698,1720438446427,-12824.58,0.00051506,120]
[331488699,1720438446481,-500.0,0.00051506,120]
[331488700,1720438446539,-737.63,0.00051506,120]
[331488701,1720438446592,-5000.69,0.00051506,120]
[331488702,1720438446646,-500.0,0.00051506,120]
[331488703,1720438446704,-979.51,0.00051506,120]
[331488704,1720438446760,-1089.79,0.00051506,120]